[Event "Charlotte Spring GM-A 2024"]
[Site "Charlotte"]
[Date "2024.03.28"]
[Round "2.2"]
[White "Levine, Joseph"]
[Black "Chen, Ryo"]
[Result "1-0"]
[ECO "B57"]
[WhiteElo "2372"]
[BlackElo "2316"]
[Annotator "RC"]
[PlyCount "151"]
[EventDate "2024.03.27"]
[EventType "tourn"]
[EventCountry "USA"]
[SourceTitle "playchess.com"]
[Source "ChessBase"]
[SourceQuality "1"]
[TimeControl "5400+30"]

1. e4 {[%emt 0:00:14]} c5 {[%emt 0:00:07]} 2. Nf3 {[%emt 0:00:07]} d6 {[%emt 0:00:04]} 3. d4 {[%emt 0:00:03]} cxd4 {[%emt 0:00:07]} 4. Nxd4 {[%emt 0:00:09]} Nf6 {[%emt 0:00:03]} 5. Nc3 {[%emt 0:00:07]} Nc6 {[%emt 0:00:05]} 6. Bc4 {[%emt 0:00:07]} Qb6 {[%emt 0:00:06]} 7. Ndb5 {[%emt 0:00:06]} a6 {[%emt 0:00:07]} 8. Be3 {[%emt 0:00:05]} Qa5 {[%emt 0:00:06]} 9. Nd4 {[%emt 0:00:06]} e6 {[%emt 0:00:08]} 10. Nxc6 {[%emt 0:01:42]} bxc6 {[%emt 0:00:03]} 11. Qf3 {[%emt 0:00:13]} Qc7 {[%emt 0:07:20]} 12. O-O-O {[%emt 0:06:25]} Be7 {[%emt 0:01:48]} 13. g4 {[%emt 0:07:37]} d5 {[%emt 0:18:53]} 14. Bb3 {[%emt 0:10:03]} Bb7 {[%emt 0:14:52]} 15. g5 {[%emt 0:14:10]} dxe4 {[%emt 0:09:53]} 16. Qe2 {[%emt 0:14:53]} Nd5 {[%emt 0:00:08]} 17. Nxe4 {[%emt 0:00:58]} c5 {[%emt 0:10:29]} 18. Ba4+ {[%emt 0:11:31]} Bc6 {[%emt 0:00:13]} 19. Bxc6+ {[%emt 0:00:14]} Qxc6 {[%emt 0:00:01]} 20. Qf3 {[%emt 0:00:17]} O-O-O {[%emt 0:12:41]} 21. Qxf7 {[%emt 0:13:59]} Rd7 {[%emt 0:13:54]} 22. Qf3 {[%emt 0:03:05]} Rf8 {[%emt 0:01:10]} 23. Qg4 {[%emt 0:01:33]} Rfd8 {[%emt 0:02:18]} 24. Bd2 {[%emt 0:02:01]} c4 {[%emt 0:02:22]} 25. Bc3 {[%emt 0:03:19]} Qa4 {[%emt 0:02:16]} 26. Kb1 {[%emt 0:02:47]} Bb4 {[%emt 0:01:40]} 27. Be5 {[%emt 0:01:38]} Qc6 {[%emt 0:00:41]} 28. Rd4 {[%emt 0:01:26]} Kb7 {[%emt 0:02:55]} 29. c3 {[%emt 0:00:59]} Bxc3 {[%emt 0:00:30]} 30. bxc3 {[%emt 0:02:18]} Nxc3+ {[%emt 0:00:30]} 31. Nxc3 {[%emt 0:00:35]} Qxh1+ {[%emt 0:00:00]} 32. Kc2 {[%emt 0:00:09]} Rxd4 {[%emt 0:00:00]} 33. Bxd4 {[%emt 0:00:01]} g6 {[%emt 0:00:52]} 34. Bf6 {[%emt 0:00:45]} Rd6 {[%emt 0:00:15]} 35. Be5 {[%emt 0:01:33]} Rd7 {[%emt 0:00:45]} 36. Qxc4 {[%emt 0:00:48]} Qc6 {[%emt 0:00:26]} 37. Qb4+ {[%emt 0:00:27]} Qb6 {[%emt 0:00:10]} 38. Qxb6+ {[%emt 0:00:28]} Kxb6 {[%emt 0:00:02]} 39. Ne4 {[%emt 0:00:48]} Kb5 {[%emt 0:00:53]} 40. Nf6 {[%emt 0:00:22]} Rb7 {[%emt 0:00:23]} 41. Kb3 {[%emt 0:01:12]} Kc5+ {[%emt 0:00:21]} 42. Kc3 {[%emt 0:00:04]} a5 {[%emt 0:00:09]} 43. f4 {[%emt 0:01:30]} a4 {[%emt 0:00:14]} 44. h4 {[%emt 0:00:12]} Rf7 {[%emt 0:01:47]} 45. h5 {[%emt 0:00:52]} gxh5 {[%emt 0:01:13]} 46. Nxh5 {[%emt 0:00:04]} Kd5 {[%emt 0:00:00]} 47. Nf6+ {[%emt 0:00:03]} Kc5 {[%emt 0:00:00]} 48. Kd3 {[%emt 0:00:33]} Rb7 {[%emt 0:01:30]} 49. Bc3 {[%emt 0:01:43]} a3 {[%emt 0:00:00]} 50. Bd4+ {[%emt 0:00:15]} Kc6 {[%emt 0:00:08]} 51. Be5 {[%emt 0:00:45]} Kc5 {[%emt 0:00:14]} 52. Kc3 {[%emt 0:00:32]} Kc6 {[%emt 0:00:58]} 53. Bd4 {[%emt 0:00:30]} Kd6 {[%emt 0:00:35]} 54. Kc2 {[%emt 0:00:33]} Kc6 {[%emt 0:00:09]} 55. Kc3 {[%emt 0:00:17]} Kd6 {[%emt 0:00:13]} 56. Kc4 {[%emt 0:00:12]} Kc6 {[%emt 0:00:19]} 57. Ne4 {[%emt 0:00:58]} Rb1 {[%emt 0:00:13]} 58. Bc3 {[%emt 0:00:24]} Rf1 {[%emt 0:00:40]} 59. Be5 {[%emt 0:00:14]} Rb1 {[%emt 0:00:40]} 60. Nd2 {[%emt 0:00:48]} Rh1 {[%emt 0:01:12]} 61. Nb3 {[%emt 0:00:35]} h6 {[%emt 0:00:36]} 62. Nd4+ {[%emt 0:00:28]} Kd7 {[%emt 0:00:07]} 63. gxh6 {[%emt 0:00:35]} Rxh6 {[%emt 0:00:10]} 64. Nb5 {[%emt 0:00:21]} Rh2 {[%emt 0:00:24]} 65. Kb3 {[%emt 0:00:09]} Kc6 {[%emt 0:00:14]} 66. Nd4+ {[%emt 0:00:58]} Kd5 {[%emt 0:00:06]} 67. Kxa3 {[%emt 0:00:11]} Rd2 {[%emt 0:00:54]} 68. Kb3 {[%emt 0:00:47]} Rd1 {[%emt 0:00:52]} 69. a4 {[%emt 0:00:28]} Rb1+ {[%emt 0:00:11]} 70. Kc3 {[%emt 0:00:11]} Ra1 {[%emt 0:01:20]} 71. Kb4 {[%emt 0:00:02]} Ra2 {[%emt 0:00:36]} 72. Nb3 {[%emt 0:01:22]} Kc6 {[%emt 0:00:27]} 73. a5 {[%emt 0:00:23]} Kd5 {[%emt 0:00:23]} 74. Kb5 {[%emt 0:00:14]} Ra3 {[%emt 0:00:08]} 75. Nd4 {[%emt 0:00:38]} Ra1 {[%emt 0:00:18]} 76. Nc2 {[%emt 0:00:33]} 1-0

[Event "Charlotte Spring GM-A 2024"]
[Site "Charlotte"]
[Date "2024.03.28"]
[Round "2.3"]
[White "Homa, Seth"]
[Black "Putnam, Liam"]
[Result "0-1"]
[ECO "A26"]
[WhiteElo "2234"]
[BlackElo "2323"]
[Annotator "RC"]
[PlyCount "84"]
[EventDate "2024.03.27"]
[EventType "tourn"]
[EventCountry "USA"]
[SourceTitle "playchess.com"]
[Source "ChessBase"]
[SourceQuality "1"]
[TimeControl "5400+30"]

1. c4 {[%emt 0:00:02]} e5 {[%emt 0:02:25]} 2. g3 {[%emt 0:00:18]} Nc6 {[%emt 0:02:57]} 3. Bg2 {[%emt 0:00:18]} g6 {[%emt 0:00:05]} 4. Nc3 {[%emt 0:00:27]} Bg7 {[%emt 0:00:10]} 5. d3 {[%emt 0:01:24]} Nge7 {[%emt 0:05:31]} 6. Rb1 {[%emt 0:01:17]} a5 {[%emt 0:03:53]} 7. a3 {[%emt 0:00:29]} O-O {[%emt 0:01:49]} 8. b4 {[%emt 0:00:15]} axb4 {[%emt 0:01:27]} 9. axb4 {[%emt 0:00:15]} d6 {[%emt 0:07:18]} 10. b5 {[%emt 0:05:32]} Nd4 {[%emt 0:02:42]} 11. e3 {[%emt 0:00:15]} Ne6 {[%emt 0:00:17]} 12. Nge2 {[%emt 0:00:25]} c6 {[%emt 0:01:41]} 13. O-O {[%emt 0:08:21]} d5 {[%emt 0:01:22]} 14. bxc6 {[%emt 0:00:32]} bxc6 {[%emt 0:00:07]} 15. cxd5 {[%emt 0:00:29]} cxd5 {[%emt 0:00:21]} 16. Nb5 {[%emt 0:28:00]} Qd7 {[%emt 0:04:47]} 17. Ba3 {[%emt 0:01:56]} Bb7 {[%emt 0:00:48]} 18. Nec3 {[%emt 0:04:38]} Rfd8 {[%emt 0:02:13]} 19. Qb3 {[%emt 0:02:12]} Nf5 {[%emt 0:04:25]} 20. e4 {[%emt 0:18:59]} dxe4 {[%emt 0:06:18]} 21. dxe4 {[%emt 0:00:12]} Nfd4 {[%emt 0:06:18]} 22. Nxd4 {[%emt 0:00:14]} exd4 {[%emt 0:03:27]} 23. Nd5 {[%emt 0:00:41]} Ra7 {[%emt 0:01:18]} 24. Rfc1 {[%emt 0:07:02]} h5 {[%emt 0:03:22]} 25. f4 {[%emt 0:05:10]} Kh8 {[%emt 0:05:43]} 26. f5 {[%emt 0:05:35]} gxf5 {[%emt 0:03:47]} 27. Qf3 {[%emt 0:00:29]} Rxa3 {[%emt 0:02:38]} 28. Qxa3 {[%emt 0:00:34]} fxe4 {[%emt 0:00:15]} 29. Nb6 {[%emt 0:01:09]} Qe8 {[%emt 0:00:56]} 30. Qa7 {[%emt 0:02:03]} Bc6 {[%emt 0:01:17]} 31. Qa5 {[%emt 0:01:01]} d3 {[%emt 0:01:01]} 32. Qxh5+ {[%emt 0:00:08]} Kg8 {[%emt 0:00:03]} 33. Nc4 {[%emt 0:05:16]} Nd4 {[%emt 0:00:24]} 34. Rf1 {[%emt 0:00:47]} e3 {[%emt 0:03:15]} 35. Bxc6 {[%emt 0:00:28]} Nxc6 {[%emt 0:00:07]} 36. Qf3 {[%emt 0:01:00]} e2 {[%emt 0:00:36]} 37. Rfe1 {[%emt 0:00:33]} Ne5 {[%emt 0:00:51]} 38. Nxe5 {[%emt 0:00:09]} Qxe5 {[%emt 0:00:04]} 39. Kg2 {[%emt 0:00:12]} f5 {[%emt 0:02:47]} 40. Rb7 {[%emt 0:01:02]} Qe4 {[%emt 0:00:30]} 41. Kf2 {[%emt 0:00:36]} Bd4+ {[%emt 0:00:26]} 42. Kg2 {[%emt 0:00:05]} Bc3 {[%emt 0:00:08]} 0-1

[Event "Charlotte Spring GM-A 2024"]
[Site "Charlotte"]
[Date "2024.03.28"]
[Round "2.4"]
[White "Cordova, Emilio"]
[Black "Tsay, Vincent"]
[Result "1-0"]
[ECO "A11"]
[WhiteElo "2551"]
[BlackElo "2337"]
[Annotator "TA"]
[PlyCount "93"]
[EventDate "2024.03.27"]
[EventType "tourn"]
[EventCountry "USA"]
[SourceTitle "playchess.com"]
[Source "ChessBase"]
[SourceQuality "1"]
[TimeControl "5400+30"]

{[%evp 9,93,12,22,17,21,18,20,0,0,0,0,0,4,4,15,1,13,11,13,0,10,0,7,0,10,11,18,0,11,11,11,3,12,0,8,18,15,0,52,37,50,52,56,29,27,9,12,0,42,43,275,250,337,283,389,389,389,389,462,457,457,462,477,476,479,494,474,393,393,393,381,388,391,391,483,482,481,472,445,437,872,741,845,830,872,852]} 1. Nf3 {[%emt 1:31:00]} d5 {[%emt 0:00:47]} 2. e3 {[%emt 0:00:00]} Nf6 {[%emt 0:01:51]} 3. c4 {[%emt 0:00:00]} c6 {[%emt 0:03:14]} 4. Nc3 {[%emt 0:00:00]} a6 {[%emt 0:00:58]} 5. b3 {[%emt 0:00:00]} Bg4 {[%emt 0:01:21]} 6. Bb2 {[%emt 0:00:00]} e6 {[%emt 0:04:31]} 7. h3 {[%emt 0:00:00]} Bh5 {[%emt 0:00:32]} 8. Rc1 {[%emt 0:00:00] The position is equal.} Nbd7 {[%emt 0:00:30]} 9. Be2 {[%emt 0:00:00]} Bd6 {[%emt 0:01:56]} 10. d3 {[%emt 0:00:00][%cal Bd2d3,Bd3d4][%mdl 32]} h6 {[%emt 0:03:03]} 11. O-O {[%emt 0:00:00]} Qe7 {[%emt 0:01:53]} 12. d4 {[%emt 0:00:00]} Bg6 {[%emt 0:06:20]} 13. Bd3 {[%emt 0:00:00]} Ne4 {[%emt 0:02:14]} (13... Bxd3 {simplifies} 14. Qxd3 Bb4 15. Ne2 Rd8) 14. Ne2 {[%emt 0:00:00]} (14. Qc2 {simplifies} Nxc3 15. Bxc3 Bxd3 16. Qxd3 Nf6 17. Nd2) 14... Qf6 {[%emt 0:06:39]} 15. Ne1 {[%emt 0:00:00]} Qh4 {[%emt 0:11:41]} 16. Nf3 {[%emt 0:00:00]} Qf6 {[%emt 0:00:19]} 17. Qc2 {[%emt 0:00:00]} Bf5 {[%emt 0:06:26]} 18. Ne1 {[%emt 0:00:00]} h5 {[%emt 0:06:48]} 19. c5 {[%emt 0:00:00]} Bc7 {[%emt 0:02:14]} 20. f3 {[%emt 0:00:00]} Ng3 {[%emt 0:05:32]} 21. Nxg3 {[%emt 0:00:00]} Bxg3 {[%emt 0:00:40]} 22. e4 {[%emt 0:00:00]} Bg6 {[%emt 0:02:58]} 23. e5 {[%emt 0:00:00]} Qg5 {[%emt 0:02:18]} (23... Bxd3 $11 24. Nxd3 Qf5) 24. Bxg6 $14 {[%emt 0:00:00]} fxg6 {[%emt 0:01:05][%cal Bf7g6,Bg6g5,Bg5g4,Bg4h3][%mdl 32]} 25. Nd3 {[%emt 0:00:00][%cal Be1d3,Bd3c1,Bc1e2,Be2g3][%mdl 32]} O-O {[%emt 0:00:55]} 26. Bc3 {[%emt 0:00:00][%cal Of3f4]} Qh4 {[%emt 0:01:33]} 27. Rcd1 {[%emt 0:06:14]} g5 {[%emt 0:03:42]} 28. Nc1 {[%emt 0:00:18] Black must now prevent Ne2.} Rf5 {[%emt 0:04:55]} (28... g4 $5 29. Qg6 Rxf3 30. gxf3 (30. Qxe6+ Kh8 $11) 30... Bh2+ (30... Nf8 $2 31. Qc2 $18) 31. Kxh2 Qxh3+ 32. Kg1 Qg3+ 33. Kh1 Qh3+ 34. Kg1 Qg3+ 35. Kh1 Qh3+ 36. Kg1 $11) 29. Ne2 {[%emt 0:00:43] Strongly threatening Rd3.} Raf8 $2 {[%emt 0:06:48] This costs Black the game.} (29... g4 $1 $14) 30. Qd3 {[%emt 0:01:53]} g4 {[%emt 0:02:12] [#]} 31. f4 $1 {[%emt 0:00:46][%mdl 512]} gxh3 {[%emt 0:05:10]} (31... Bxf4 32. Rxf4) 32. Qxg3 {[%emt 0:00:08]} (32. Nxg3 Rxf4 33. Rxf4 Rxf4 $16) 32... Qxg3 {[%emt 0:00:12]} 33. Nxg3 {[%emt 0:00:05]} Rxf4 {[%emt 0:00:30]} 34. Rxf4 {[%emt 0:00:49]} (34. gxh3 Rh4 35. Kg2 Rxf1 36. Nxf1 (36. Rxf1 Nf8 $18) 36... g5) 34... Rxf4 {[%emt 0:00:04]} 35. gxh3 {[%emt 0:00:29]} (35. Nxh5 Rh4 $18) 35... Rf3 {[%emt 0:00:26]} 36. Be1 {[%emt 0:00:13]} ({Worse is} 36. Nxh5 g6 $11 (36... Rxc3 37. h4 $15)) 36... h4 {[%emt 0:00:13]} 37. Nf1 {[%emt 0:00:27]} ({But not} 37. Kg2 Re3 38. Bf2 Rc3 $18) 37... Nf8 {[%emt 0:01:05]} 38. Bxh4 {[%emt 0:00:33]} Rxh3 {[%emt 0:00:03][%cal Bf3h3,Bh3h5,Bh5h4,Bh4e4][%mdl 32]} 39. Bg3 {[%emt 0:00:08]} Ng6 {[%emt 0:00:11]} 40. Kg2 {[%emt 0:00:11]} Rh5 {[%emt 0:00:04]} 41. Ne3 {[%emt 0:01:16]} Nh4+ {[%emt 0:00:03]} 42. Bxh4 {[%emt 0:00:07] White is clearly winning.} Rxh4 {[%emt 0:00:04]} 43. Kg3 {[%emt 0:02:17]} Re4 {[%emt 0:00:03]} 44. Kf3 {[%emt 0:00:21][%cal Oe3c4] And now Nc4! would win.} Kf7 {[%emt 0:00:05] [#]} (44... g5 $142 45. Ke2 Kf7 46. Rf1+ Ke7) 45. Nc4 $1 $18 {[%emt 0:00:34][%mdl 512] aiming for Nd6+.} Rh4 {[%emt 0:00:39]} 46. Nd6+ {[%emt 0:00:11]} Ke7 {[%emt 0:00:01]} 47. Kg3 {[%emt 0:00:13] Weighted Error Value: White=0.07 (flawless) /Black=0.28 (precise) .  Loses game:     	---       	Black=1      Mistake:       	---       	Black=2      Inaccurate:     	White=1     	Black=3      OK:         	White=19    	Black=12     Best:        	White=3     	---        Brilliant:      	White=2     	---} 1-0

[Event "Charlotte Spring GM-A 2024"]
[Site "Charlotte"]
[Date "2024.03.28"]
[Round "2.5"]
[White "Cruz, Cristhian"]
[Black "Gauri, Shankar"]
[Result "1/2-1/2"]
[ECO "A50"]
[WhiteElo "2487"]
[BlackElo "2345"]
[Annotator "TA"]
[PlyCount "35"]
[EventDate "2024.03.27"]
[EventType "tourn"]
[EventCountry "USA"]
[SourceTitle "playchess.com"]
[Source "ChessBase"]
[SourceQuality "1"]
[TimeControl "5400+30"]

{[%evp 12,35,19,14,35,33,30,26,22,31,18,23,39,31,53,23,12,0,14,0,20,25,22,32,23,2]} 1. Nf3 {[%emt 0:04:55]} Nf6 {[%emt 0:09:10]} 2. c4 {[%emt 0:01:32]} b6 {[%emt 0:00:30]} 3. g3 {[%emt 0:00:30]} Bb7 {[%emt 0:00:57]} 4. Bg2 g6 {[%emt 0:00:23]} 5. d4 Bg7 {[%emt 0:00:10]} 6. O-O O-O {[%emt 0:03:31]} 7. d5 Na6 {[%emt 0:05:39][%cal Bb8a6,Ba6c5,Bc5e4][%mdl 32]} 8. Nc3 Nc5 {[%emt 1:14:10]} 9. Re1 {[%emt 1:28:03]} Nfe4 {[%emt 0:00:00]} 10. Nxe4 {[%emt 0:00:00]} Nxe4 {[%emt 0:00:00]} 11. Qc2 {[%emt 0:00:00]} f5 {[%emt 0:01:30]} 12. Ng5 {[%emt 0:00:00]} Nc5 {[%emt 0:00:00]} 13. Be3 {[%emt 0:02:00]} e5 {[%emt 0:00:00]} 14. dxe6 {[%emt 0:00:00] [#] Und Bxc5 würde nun gewinnen.} Bxg2 {[%emt 0:00:00]} 15. Kxg2 {[%emt 0:00:00]} Nxe6 {[%emt 0:00:00]} 16. Nxe6 {[%emt 0:00:00]} dxe6 {[%emt 0:00:00]} 17. Rad1 {[%emt 0:02:00]} Qe8 18. b4 {[%emt 0:00:00] Gewichteter Fehlerwert: Weiß=0.05 (makellos) /Schwarz=0.10 (sehr präzise) .  Ungenau:       	Weiß=1     	---        OK:         	Weiß=5     	Schwarz=4     Bester:       	---       	Schwarz=1} 1/2-1/2

[Event "Charlotte Spring GM-A 2024"]
[Site "Charlotte"]
[Date "2024.03.29"]
[Round "3.2"]
[White "Tsay, Vincent"]
[Black "Cruz, Cristhian"]
[Result "0-1"]
[ECO "D02"]
[WhiteElo "2337"]
[BlackElo "2487"]
[Annotator "TA"]
[PlyCount "82"]
[EventDate "2024.03.27"]
[EventType "tourn"]
[EventCountry "USA"]
[SourceTitle "playchess.com"]
[Source "ChessBase"]
[SourceQuality "1"]
[TimeControl "5400+30"]

{[%evp 9,82,6,8,6,16,16,11,16,4,-45,-24,-72,0,0,47,48,46,23,10,-11,-10,-28,-30,-20,-12,-28,-27,-45,-57,-58,-42,-57,-56,-57,-30,-33,-34,-33,-31,-36,-25,-22,-26,-30,-30,-29,-30,-29,-29,-29,-29,-51,-51,-51,-51,-51,-52,-51,-51,-68,-68,-96,-68,-73,0,-102,-60,-45,-38,-1621,-1602,-1494,-1439,-1027,-964]} 1. d4 {[%emt 0:11:14]} e6 {[%emt 0:00:28]} 2. Bf4 {[%emt 0:00:14]} d5 {[%emt 0:00:59]} 3. e3 {[%emt 0:00:07]} Nf6 {[%emt 0:01:09]} 4. Nd2 {[%emt 0:00:57]} Bd6 {[%emt 0:00:24]} 5. Ngf3 {[%emt 0:00:58]} O-O {[%emt 0:02:20]} 6. Bd3 {[%emt 0:00:33]} c5 {[%emt 0:02:29]} 7. dxc5 {[%emt 0:02:53]} Bxc5 {[%emt 0:04:03]} 8. Qe2 {[%emt 0:02:03] The position is equal.} Nc6 {[%emt 0:18:44]} 9. e4 {[%emt 0:01:46]} (9. c4 $11) 9... e5 {[%emt 0:03:39]} 10. Nxe5 {[%emt 0:03:29]} (10. Bg3 $11) 10... Nxe5 {[%emt 0:09:05]} (10... Nd4 $17 11. Qd1 Bd6) 11. Bxe5 $11 {[%emt 0:00:06]} Re8 {[%emt 0:00:13]} (11... Ng4 $11 {deserves consideration.} 12. Bg3 f5) 12. Bxf6 $1 $14 {[%emt 0:02:13]} Qxf6 {[%emt 0:00:03]} 13. O-O {[%emt 0:11:17]} Qxb2 {[%emt 0:08:45]} 14. Qh5 {[%emt 0:05:50]} Qe5 {[%emt 0:10:05]} 15. Qxe5 {[%emt 0:05:13]} Rxe5 {[%emt 0:00:03]} 16. Nf3 {[%emt 0:01:10]} Rh5 {[%emt 0:00:49]} 17. Rab1 {[%emt 0:01:53]} Rb8 {[%emt 0:04:17]} 18. h3 {[%emt 0:01:55]} dxe4 {[%emt 0:01:14]} 19. Bxe4 {[%emt 0:00:12]} b6 {[%emt 0:03:26]} 20. Rfd1 {[%emt 0:00:47] [#] aiming for Rd8+.} Be6 {[%emt 0:03:17][%cal Og7g6]} 21. a4 {[%emt 0:02:00]} Kf8 {[%emt 0:02:30]} 22. Nd4 {[%emt 0:04:26]} Bxd4 {[%emt 0:00:50]} 23. Rxd4 {[%emt 0:00:02]} Rc8 {[%emt 0:00:53]} 24. Bd3 {[%emt 0:01:21]} Rhc5 {[%emt 0:03:41]} 25. g4 {[%emt 0:04:58]} h5 {[%emt 0:01:28]} 26. Kg2 {[%emt 0:01:02]} Rd5 {[%emt 0:01:42]} 27. Rxd5 {[%emt 0:03:50]} Bxd5+ $11 {[%emt 0:00:02][%mdl 4096] Endgame. KRB-KRB} 28. Kg3 {[%emt 0:00:09]} hxg4 {[%emt 0:00:09]} 29. hxg4 {[%emt 0:00:08][%cal Oa4a5]} Rc5 {[%emt 0:00:04]} 30. Rb4 {[%emt 0:06:19]} g5 {[%emt 0:01:20]} 31. f4 {[%emt 0:05:56]} f6 {[%emt 0:00:10]} 32. Kf2 {[%emt 0:00:49]} Ke7 {[%emt 0:00:37]} 33. Ke3 {[%emt 0:00:26]} Bc6 {[%emt 0:01:17]} 34. f5 {[%emt 0:04:58]} Kd6 {[%emt 0:00:45] Black is more active.} 35. Kd2 {[%emt 0:01:36]} Rd5 {[%emt 0:06:54]} 36. Kc3 {[%emt 0:02:49]} Rc5+ {[%emt 0:00:15]} 37. Kd2 $1 {[%emt 0:00:13]} Ke5 {[%emt 0:00:26]} 38. Ke3 {[%emt 0:02:40]} Rc3 {[%emt 0:02:19]} 39. Rb3 {[%emt 0:02:17][%mdl 8192] [#]} (39. Kd2 $15 Rc5 40. Be2) 39... Rxb3 $19 {[%emt 0:00:56] Black is clearly winning.} 40. cxb3 {[%emt 0:00:01]} Bd5 {[%emt 0:00:36]} 41. b4 {[%emt 0:01:20]} Bb3 {[%emt 0:00:10] Weighted Error Value: White=0.28 (precise) /Black=0.10 (very precise) .  Loses game:     	White=1     	---        Mistake:       	White=2     	Black=2      Inaccurate:     	White=1     	Black=2      OK:         	White=12    	Black=13     Best:        	---       	Black=1      Strong:       	White=2     	---} 0-1

[Event "Charlotte Spring GM-A 2024"]
[Site "Charlotte"]
[Date "2024.03.29"]
[Round "3.3"]
[White "Putnam, Liam"]
[Black "Cordova, Emilio"]
[Result "1/2-1/2"]
[ECO "A90"]
[WhiteElo "2323"]
[BlackElo "2551"]
[Annotator "TA"]
[PlyCount "60"]
[EventDate "2024.03.27"]
[EventType "tourn"]
[EventCountry "USA"]
[SourceTitle "playchess.com"]
[Source "ChessBase"]
[SourceQuality "1"]
[TimeControl "5400+30"]

{[%evp 11,60,23,30,8,19,26,20,24,18,29,15,10,20,28,17,19,19,20,3,0,15,0,7,0,7,19,11,12,18,0,6,0,0,7,15,17,19,27,29,19,29,0,0,0,0,0,0,0,0,0,0]} 1. d4 {[%emt 0:01:42]} e6 {[%emt 0:03:18]} 2. c4 {[%emt 0:00:36]} f5 {[%emt 0:00:44]} 3. g3 {[%emt 0:00:45]} Nf6 {[%emt 0:00:25]} 4. Bg2 {[%emt 0:00:08]} Bb4+ {[%emt 0:00:24]} 5. Bd2 {[%emt 0:01:44]} Qe7 {[%emt 0:00:14]} 6. Nc3 {[%emt 0:06:26]} O-O {[%emt 0:03:27]} 7. Nf3 {[%emt 0:01:05]} d6 {[%emt 0:00:22]} 8. a3 {[%emt 0:05:09]} Bxc3 {[%emt 0:00:08]} 9. Bxc3 {[%emt 0:00:02]} Ne4 {[%emt 0:01:50]} 10. Rc1 {[%emt 0:00:52]} Nd7 {[%emt 0:00:25]} 11. O-O {[%emt 0:01:33]} Ndf6 {[%emt 0:00:36]} 12. Be1 {[%emt 0:08:55][%cal Bc3e1,Be1f2,Bf2e3,Be3g5][%mdl 32]} b6 {[%emt 0:07:42]} 13. Nd2 {[%emt 0:12:34]} Bb7 {[%emt 0:01:27]} 14. f3 {[%emt 0:00:15]} Nxd2 {[%emt 0:00:09]} 15. Qxd2 {[%emt 0:00:38]} e5 {[%emt 0:02:33]} 16. dxe5 {[%emt 0:02:35]} dxe5 {[%emt 0:00:25]} 17. Bf2 {[%emt 0:02:29]} Rad8 {[%emt 0:11:25]} 18. Qc3 {[%emt 0:01:07]} e4 {[%emt 0:00:35]} 19. Rfd1 {[%emt 0:01:57]} c5 {[%emt 0:04:04]} 20. Be3 {[%emt 0:09:32]} Rfe8 {[%emt 0:11:56] [#] White must now prevent ...Rxd1+.} 21. Bg5 {[%emt 0:03:55]} exf3 {[%emt 0:08:09]} 22. exf3 {[%emt 0:37:31]} Rxd1+ {[%emt 0:07:47]} 23. Rxd1 {[%emt 0:00:00]} Qe2 {[%emt 0:01:14]} (23... Kf7 {simplifies} 24. Qd3 Qe2 25. Qxe2 Rxe2 26. Bd2 h6) 24. Rd2 {[%emt 0:00:00]} Qe1+ {[%emt 0:00:12]} 25. Bf1 {[%emt 0:00:00][%cal Oc3d3]} Bc6 {[%emt 0:01:01]} 26. Bxf6 {[%emt 0:00:00]} (26. Rd3 {simplifies} Qxc3 27. Rxc3 Kf7 28. Kf2) 26... gxf6 {[%emt 0:00:22] The position is equal.} 27. Rd8 {[%emt 0:00:00]} Qxc3 {[%emt 0:00:37]} 28. Rxe8+ {[%emt 0:00:00]} Bxe8 {[%emt 0:01:44]} 29. bxc3 {[%emt 0:00:00]} f4 {[%emt 0:02:12]} 30. gxf4 {[%emt 0:00:00]} f5 {[%emt 0:01:39] Not much happened in this game.   Weighted Error Value: White=0.06 (flawless) /Black=0.02 (flawless) .  Inaccurate:     	White=1     	---        OK:         	White=7     	Black=10} 1/2-1/2

[Event "Charlotte Spring GM-A 2024"]
[Site "Charlotte"]
[Date "2024.03.29"]
[Round "3.4"]
[White "Chen, Ryo"]
[Black "Homa, Seth"]
[Result "1-0"]
[ECO "C77"]
[WhiteElo "2316"]
[BlackElo "2234"]
[Annotator "RC"]
[PlyCount "75"]
[EventDate "2024.03.27"]
[EventType "tourn"]
[EventCountry "USA"]
[SourceTitle "playchess.com"]
[Source "ChessBase"]
[SourceQuality "1"]
[TimeControl "5400+30"]

1. e4 {[%emt 0:00:55]} e5 {[%emt 0:00:20]} 2. Nf3 {[%emt 0:00:33]} Nc6 {[%emt 0:00:10]} 3. Bb5 {[%emt 0:00:06]} a6 {[%emt 0:00:13]} 4. Ba4 {[%emt 0:00:02]} Nf6 {[%emt 0:00:14]} 5. Nc3 {[%emt 0:00:45]} d6 {[%emt 0:00:35]} 6. Bxc6+ {[%emt 0:00:45]} bxc6 {[%emt 0:00:12]} 7. d4 {[%emt 0:00:07]} Nd7 {[%emt 0:00:48]} 8. Be3 {[%emt 0:04:30]} Be7 {[%emt 0:01:34]} 9. dxe5 {[%emt 0:02:12]} dxe5 {[%emt 0:01:20]} 10. Qe2 {[%emt 0:03:39]} Bd6 {[%emt 0:06:12]} 11. Qc4 {[%emt 0:06:57]} Rb8 {[%emt 0:03:18]} 12. b3 {[%emt 0:02:51]} Rb4 {[%emt 0:05:10]} 13. Qe2 {[%emt 0:02:00]} O-O {[%emt 0:00:30]} 14. O-O {[%emt 0:01:22]} a5 {[%emt 0:11:27]} 15. Nd2 {[%emt 0:01:15]} Nc5 {[%emt 0:02:13]} 16. Rfd1 {[%emt 0:10:16]} Ba6 {[%emt 0:03:33]} 17. Qe1 {[%emt 0:08:36]} Ne6 {[%emt 0:03:57]} 18. Nf3 {[%emt 0:01:39]} Qe7 {[%emt 0:03:18]} 19. a3 {[%emt 0:04:33]} Rbb8 {[%emt 0:00:11]} 20. Ne2 {[%emt 0:03:05]} Kh8 {[%emt 0:09:00]} 21. Ng3 {[%emt 0:01:04]} g6 {[%emt 0:05:33]} 22. Qxa5 {[%emt 0:04:41]} Bc8 {[%emt 0:04:07]} 23. Qc3 {[%emt 0:04:45]} Ng7 {[%emt 0:00:11]} 24. b4 {[%emt 0:05:37]} Bg4 {[%emt 0:04:54]} 25. Bh6 {[%emt 0:03:11]} Rg8 {[%emt 0:04:55]} 26. h3 {[%emt 0:01:24]} Bd7 {[%emt 0:00:09]} 27. Be3 {[%emt 0:01:50]} f5 {[%emt 0:03:26]} 28. Bc5 {[%emt 0:06:37]} f4 {[%emt 0:00:10]} 29. Nf1 {[%emt 0:02:55]} g5 {[%emt 0:00:15]} 30. N1h2 {[%emt 0:01:47]} h5 {[%emt 0:00:21]} 31. Qd3 {[%emt 0:02:25]} Ne8 {[%emt 0:00:57]} 32. Nxe5 {[%emt 0:00:22]} Bxc5 {[%emt 0:17:21]} 33. Nxd7 {[%emt 0:14:14]} Ba7 {[%emt 0:00:07]} 34. Nxb8 {[%emt 0:00:00]} g4 {[%emt 0:00:08]} 35. hxg4 {[%emt 0:01:00]} Qh4 {[%emt 0:03:13]} 36. Qh3 {[%emt 0:00:00]} Qxf2+ {[%emt 0:00:34]} 37. Kh1 {[%emt 0:00:00]} Nf6 {[%emt 0:00:11]} 38. e5 {[%emt 0:00:00]} 1-0